bitfinex/quotes_SOLUSD_20250917
["timestamp","ask_amount","ask_price","bid_price","bid_amount"]
[1758119214185,0.03,235.38,235.31,30.0023771]
[1758119214481,0.03,235.38,235.37,1.53278709]
[1758119214975,0.03,235.38,235.37,2.19278709]
[1758119215963,0.03,235.38,235.37,1.53278709]
[1758119216182,0.03,235.38,235.37,2.19278709]
[1758119216485,0.03,235.38,235.37,6.4414169]
[1758119217180,0.03,235.38,235.37,5.7814169]
[1758119217557,0.03,235.38,235.37,6.4514169]
[1758119220355,0.03,235.38,235.37,4.91862981]
[1758119220573,0.03,235.38,235.37,5.7814169]
[1758119220775,0.03,235.38,235.37,6.4514169]
[1758119221185,0.03,235.38,235.37,4.91862981]
[1758119221381,0.03,235.38,235.37,6.4514169]
[1758119222475,0.03,235.38,235.37,5.7814169]
[1758119222875,0.03,235.38,235.37,4.24862981]
[1758119223061,0.03,235.38,235.37,5.7814169]
[1758119223259,0.03,235.38,235.37,6.4514169]
[1758119223664,0.03,235.38,235.37,4.24862981]
[1758119223878,0.03,235.38,235.37,5.7814169]
[1758119224462,0.03,235.38,235.37,6.4814169]
[1758119224869,0.03,235.38,235.37,5.7814169]
[1758119225555,0.03,235.38,235.33,13.59559401]
[1758119225760,0.03,235.38,235.37,1.53278709]
[1758119226581,0.03,235.38,235.37,5.7814169]
[1758119228470,0.03,235.38,235.37,6.4814169]
[1758119231890,0.03,235.38,235.37,5.7814169]
[1758119232387,0.03,235.38,235.37,6.4814169]
[1758119232595,0.03,235.38,235.37,20.07701091]
[1758119232888,0.03,235.4,235.38,13.59559401]
[1758119233093,0.03,235.4,235.39,15.1283811]
[1758119233266,0.03,235.4,235.39,15.8283811]
[1758119233867,0.03,235.4,235.39,20.07664993]
[1758119237893,0.69,235.4,235.39,17.84386284]
[1758119238194,0.03,235.4,235.39,4.24826883]
[1758119238395,0.69,235.4,235.39,5.78105592]
[1758119238599,0.69,235.4,235.37,4.24848281]
[1758119238773,0.66,235.39,235.37,5.7812699]
[1758119238979,0.66,235.39,235.38,1.53278709]
[1758119239299,0.03,235.4,235.38,1.53278709]
[1758119239478,0.03,235.4,235.39,1.53278709]
[1758119240185,0.03,235.4,235.39,5.78105592]
[1758119240696,0.69,235.4,235.39,5.78105592]
[1758119240899,0.03,235.4,235.39,5.78105592]
[1758119242579,0.69,235.4,235.39,5.78105592]
[1758119243395,0.03,235.4,235.39,5.78105592]
[1758119243901,0.69,235.4,235.39,5.78105592]
[1758119244105,0.03,235.4,235.39,5.78105592]
[1758119244882,0.03,235.4,235.39,6.48105592]
[1758119245887,0.03,235.4,235.39,7.33731663]
[1758119246703,0.03,235.4,235.39,4.94826883]
[1758119246887,0.03,235.4,235.39,7.33731663]
[1758119248905,1e-08,235.41,235.4,13.59559401]
[1758119249103,1e-08,235.41,235.4,14.29559401]
[1758119249304,1e-08,235.41,235.4,20.93273017]
[1758119249494,1e-08,235.41,235.4,20.23273017]
[1758119250302,1e-08,235.41,235.4,20.93273017]
[1758119250698,1e-08,235.41,235.4,23.32177797]
[1758119251592,0.03,235.43,235.4,33.94199887]
[1758119251785,0.1,235.47,235.43,13.59559401]
[1758119252095,0.1,235.47,235.46,2.3890478]
[1758119252625,0.1,235.47,235.46,3.0890478]
[1758119252822,0.1,235.47,235.46,2.3890478]
[1758119253025,0.1,235.47,235.43,15.98464181]
[1758119253188,0.1,235.47,235.46,2.3890478]
[1758119253510,0.1,235.47,235.41,10.61976976]
[1758119253712,0.1,235.47,235.45,2.3890478]
[1758119253919,0.78,235.47,235.45,2.3890478]
[1758119254118,0.68,235.46,235.45,2.3890478]
[1758119254313,0.68,235.46,235.44,2.3890478]
[1758119254511,0.68,235.45,235.44,2.3890478]
[1758119255529,0.68,235.45,235.44,6.63641443]
[1758119257725,0.68,235.45,235.44,2.3890478]
[1758119257921,0.68,235.45,235.41,6.63679755]
[1758119258119,0.68,235.44,235.41,6.63679755]
[1758119258321,0.68,235.43,235.42,2.3890478]
[1758119259603,0.68,235.43,235.4,2.3890478]
[1758119259811,0.68,235.42,235.4,2.3890478]
[1758119260430,0.68,235.41,235.4,2.3890478]
[1758119260810,10.49702677,235.43,235.4,2.3890478]
[1758119261232,0.68,235.42,235.4,2.3890478]
[1758119261610,10.49702677,235.43,235.41,6.6369557]
[1758119261804,0.68,235.42,235.41,4.2479079]
[1758119262710,3.0690478,235.42,235.38,4.24844931]
[1758119262907,2.3890478,235.39,235.37,0.06]
[1758119263111,2.3890478,235.38,235.37,0.06]
[1758119263329,0.68,235.38,235.37,0.06]
[1758119263530,3.0690478,235.38,235.37,0.06]
[1758119263735,0.68,235.38,235.37,0.06]
[1758119264115,32.88,235.4,235.37,4.30862981]
[1758119264338,0.68,235.38,235.37,0.06]
[1758119265434,3.54033091,235.38,235.37,0.06]
[1758119265934,0.68,235.38,235.37,0.06]
[1758119266129,3.54033091,235.38,235.37,0.06]
[1758119266329,0.68,235.38,235.37,0.06]
[1758119267219,3.0690478,235.38,235.37,0.06]
[1758119267428,10.17782802,235.38,235.37,0.06]
[1758119267620,3.0690478,235.38,235.37,0.06]
[1758119267820,5.92937871,235.38,235.37,0.06]
[1758119268128,10.17782802,235.38,235.37,0.06]
[1758119268428,7.31749711,235.38,235.37,0.06]
[1758119268631,7.78878022,235.38,235.37,0.06]
[1758119268826,0.68,235.38,235.37,0.06]
[1758119269415,3.0690478,235.38,235.37,0.06]
[1758119269814,0.68,235.38,235.37,0.06]
[1758119270635,3.0690478,235.38,235.37,0.06]
[1758119273347,7.31749711,235.38,235.37,0.06]
[1758119274123,3.0690478,235.38,235.37,0.06]
[1758119274450,2.86033091,235.39,235.37,0.06]
[1758119274647,32.9,235.38,235.37,4.30862981]
[1758119275436,33.58,235.38,235.37,0.06]
[1758119275618,32.9,235.38,235.37,0.06]
[1758119276523,32.9,235.38,235.37,4.30862981]
[1758119276944,2.3890478,235.41,235.37,4.30862981]
[1758119276945,0.72,235.41,235.37,4.30862981]
[1758119277130,33.62,235.4,235.37,4.30862981]
[1758119277322,0.72,235.39,235.37,4.30862981]
[1758119277745,32.9,235.4,235.37,4.30862981]
[1758119278148,33.62,235.4,235.37,4.30862981]
[1758119278349,13.60607457,235.43,235.37,5.00862981]
[1758119278649,32.9,235.42,235.38,0.7]
[1758119278828,32.9,235.42,235.39,3.0890478]
[1758119279039,32.9,235.42,235.39,2.3890478]
[1758119279422,32.9,235.42,235.38,2.3890478]
[1758119279640,32.9,235.42,235.38,3.0890478]
[1758119280028,10.49702677,235.43,235.41,2.3890478]
[1758119280232,32.9,235.42,235.41,2.3890478]
[1758119280549,10.49702677,235.43,235.42,4.24772746]
[1758119280752,43.39702677,235.43,235.42,6.63677526]
[1758119281340,43.39702677,235.43,235.42,4.94772746]
[1758119281550,43.39702677,235.43,235.42,3.0890478]
[1758119281721,44.11702677,235.43,235.41,2.3890478]
[1758119282044,0.72,235.42,235.37,0.06]
[1758119282252,0.72,235.41,235.37,0.06]
[1758119282459,32.9,235.4,235.37,0.06]
[1758119283052,32.9,235.4,235.37,4.30861163]
[1758119283648,32.9,235.4,235.37,0.06]
[1758119284046,32.9,235.4,235.37,4.30862614]
[1758119284651,33.58,235.4,235.37,4.30862614]
[1758119285763,0.68,235.39,235.37,4.30862614]
[1758119286436,0.68,235.38,235.37,4.30862614]
[1758119286639,35.9690478,235.4,235.37,4.30862614]
[1758119286841,2.3890478,235.39,235.37,4.30862614]
[1758119287050,3.0690478,235.38,235.37,0.06]
[1758119289050,7.31749711,235.38,235.37,0.06]
[1758119290367,3.0690478,235.38,235.37,0.06]
[1758119291054,7.31749711,235.38,235.37,0.06]
[1758119295270,20.91309112,235.38,235.37,0.06]
[1758119295572,13.59559401,235.37,235.35,0.06]
[1758119295752,51.73726758,235.36,235.35,0.06]
[1758119296153,52.41726758,235.36,235.35,0.06]
[1758119296352,54.12008362,235.36,235.35,0.06]
[1758119297052,25.46889395,235.36,235.35,0.06]
[1758119297251,58.36889395,235.36,235.35,0.06]
[1758119302159,61.94588437,235.36,235.35,0.06]
[1758119302562,13.59559401,235.35,235.34,1e-08]
[1758119302761,18.83726758,235.35,235.34,1e-08]
[1758119302966,19.51726758,235.35,235.34,1e-08]
[1758119303369,38.44846657,235.35,235.34,1e-08]
[1758119303584,13.59559401,235.33,235.23,0.06]
[1758119303798,15.98464181,235.3,235.23,0.06]
[1758119303960,35.75262577,235.29,235.24,0.66]
[1758119304159,2.3890478,235.26,235.23,0.06]
[1758119304355,32.9,235.25,235.23,0.06]
[1758119304572,32.9,235.25,235.23,0.72]
[1758119304782,35.2890478,235.25,235.23,0.72]
[1758119304977,2.3890478,235.24,235.23,0.06]
[1758119305185,32.9,235.25,235.23,0.06]
[1758119305380,2.3890478,235.24,235.23,0.06]
[1758119305962,32.9,235.25,235.23,0.06]
[1758119306167,2.3890478,235.24,235.23,0.06]
[1758119306370,0.6575458,235.24,235.23,0.06]
[1758119306587,4.18972679,235.24,235.23,0.06]
[1758119307794,9.31615017,235.24,235.23,0.06]
[1758119312869,42.23615017,235.24,235.23,0.06]
[1758119313890,55.83174418,235.24,235.23,0.06]
[1758119314287,57.53564825,235.24,235.23,0.06]
[1758119317595,57.53564825,235.24,235.22,0.06]
[1758119317781,4.38517245,235.23,235.22,0.06]
[1758119318276,9.32633089,235.23,235.22,0.06]
[1758119319504,22.9219249,235.23,235.22,0.06]
[1758119319793,22.9219249,235.23,235.2,0.06]
[1758119319794,13.59559401,235.22,235.2,0.06]
[1758119319985,37.30517245,235.21,235.2,0.06]
[1758119320172,37.99517245,235.21,235.2,0.06]
[1758119320372,42.24669236,235.21,235.2,0.06]
[1758119322497,55.84228637,235.21,235.2,0.06]
[1758119323489,13.59559401,235.2,235.18,0.06]
[1758119323698,57.0327323,235.19,235.18,0.06]
[1758119323892,150.37076646,235.19,235.18,0.06]
[1758119324092,189.4227323,235.19,235.18,0.06]
[1758119324298,184.99510614,235.19,235.18,0.06]
[1758119325089,195.37895343,235.19,235.18,0.06]
[1758119325291,13.59559401,235.18,235.16,0.06]
[1758119325600,206.00865707,235.19,235.16,0.06]
[1758119325601,17.98076646,235.17,235.16,0.06]
[1758119325799,50.90076646,235.17,235.16,0.06]
[1758119326107,50.90076646,235.17,235.16,0.73]
[1758119326403,17.98076646,235.17,235.16,0.73]
[1758119326988,55.15300951,235.17,235.16,0.73]
[1758119327305,55.15300951,235.17,235.16,0.06]
[1758119327483,22.23300951,235.17,235.16,0.06]
[1758119327683,3.23718591,235.17,235.16,0.73]
[1758119327883,32.92,235.17,235.16,0.73]
[1758119328480,34.45299146,235.17,235.16,0.73]
[1758119329110,8.56435635,235.2,235.16,0.73]
[1758119329407,34.45299146,235.19,235.17,0.67]
[1758119329897,32.92,235.18,235.17,0.67]
[1758119330806,34.45299146,235.18,235.16,0.06]
[1758119331008,1.53299146,235.17,235.16,0.06]
[1758119331385,4.37281841,235.17,235.16,0.06]
[1758119331812,18.65841242,235.17,235.16,0.06]
[1758119331993,17.96841242,235.17,235.16,0.06]
[1758119332307,51.57841242,235.17,235.16,0.06]
[1758119333210,55.83065547,235.17,235.16,0.06]
[1758119333516,55.83065547,235.17,235.15,0.06]
[1758119333517,61.96262131,235.17,235.15,0.06]
[1758119333687,17.96841242,235.16,235.15,0.06]
[1758119333889,17.96841242,235.16,235.12,0.06]
[1758119333890,21.53584917,235.16,235.12,0.06]
[1758119334087,18.69602222,235.13,235.1,0.06]
[1758119334324,37.29281841,235.12,235.1,0.06]
[1758119334532,41.55025516,235.12,235.1,0.06]
[1758119335326,45.80340248,235.12,235.1,0.06]
[1758119335485,56.51666485,235.12,235.1,0.06]
[1758119337186,79.51236319,235.12,235.1,0.06]
[1758119337391,13.59559401,235.11,235.04,0.2]
[1758119337692,15.12858547,235.05,235.04,0.2]
[1758119337887,50.88841242,235.05,235.04,0.2]
[1758119338200,57.73037826,235.05,234.98,0.2]
[1758119338397,15.12858547,234.99,234.98,0.2]
[1758119338595,15.12858547,234.99,234.85,10.64487338]
[1758119338596,13.59559401,234.98,234.91,0.71]
[1758119338801,13.59559401,234.96,234.81,10.64653536]
[1758119338992,13.59559401,234.94,234.88,0.71]
[1758119339191,2.83982695,234.93,234.88,0.71]
[1758119339415,13.59559401,234.93,234.89,0.71]
[1758119339626,1.53299146,234.9,234.86,0.71]
[1758119339797,1.53299146,234.87,234.78,14.90756918]
[1758119339994,1.53299146,234.84,234.78,14.90756918]
[1758119340233,34.4,234.83,234.78,4.25930658]
[1758119340424,34.4,234.82,234.79,0.71]
[1758119340629,1.53299146,234.8,234.75,1.0]
[1758119340926,1.53299146,234.81,234.75,5.25971192]
[1758119341102,34.44,234.79,234.75,1.0]
[1758119341307,34.54,234.78,234.76,0.71]
[1758119341504,13.59559401,234.86,234.76,4.96962655]
[1758119341820,10.76928558,234.81,234.75,1.0]
[1758119341989,34.7,234.8,234.75,1.0]
[1758119342194,34.7,234.8,234.76,0.71]
[1758119342407,10.76928558,234.81,234.77,0.71]
[1758119342616,36.31299146,234.79,234.75,1.0]
[1758119342909,36.31299146,234.79,234.76,0.71]
[1758119343117,34.78,234.79,234.77,0.71]
[1758119343298,10.76928558,234.81,234.78,0.71]
[1758119343503,10.76928558,234.81,234.8,1.53299146]
[1758119343702,45.56928558,234.81,234.8,0.72]
[1758119344005,10.76928558,234.81,234.8,0.72]
[1758119344206,10.76928558,234.81,234.8,2.25299146]
[1758119344411,34.84,234.81,234.8,2.25299146]
[1758119344598,34.84,234.82,234.8,2.25299146]
[1758119344798,34.84,234.85,234.81,1.53299146]
[1758119345021,131.7,234.98,234.84,1.53299146]
[1758119345203,1.53299146,234.95,234.86,4.25785574]
[1758119345401,1.53299146,234.99,234.92,1.53299146]
[1758119345726,1.53299146,234.94,234.9,0.72]
[1758119345927,12.79017715,235.04,234.93,3.9398778]
[1758119346114,34.86,235.03,234.94,0.72]
[1758119346300,34.86,235.03,234.95,3.9398778]
[1758119346301,3.9398778,235.02,234.95,3.9398778]
[1758119346503,3.9398778,235.01,234.96,0.72]
[1758119346712,16.42429704,235.02,234.86,14.90249509]
[1758119346915,12.79017715,235.04,234.94,0.72]
[1758119347229,0.71,235.05,234.95,4.25622472]
[1758119347401,3.9398778,235.01,234.96,0.72]
[1758119347605,3.9398778,235.01,234.97,0.72]
[1758119347606,0.03,234.98,234.97,0.72]
[1758119347917,34.88,235.03,234.97,4.6598778]
[1758119348224,34.88,235.03,235.01,3.9398778]
[1758119348400,34.88,235.03,235.02,0.72]
[1758119348599,34.91,235.03,235.02,0.72]
[1758119348826,0.03,235.03,235.02,4.6598778]
[1758119349332,0.03,235.03,235.02,8.91483482]
[1758119349518,0.03,235.03,235.02,0.72]
[1758119349718,0.03,235.03,235.02,4.6598778]
[1758119349918,0.03,235.03,235.02,0.72]
[1758119350131,0.03,235.03,234.98,4.6598778]
[1758119350317,0.03,235.03,234.99,0.72]
[1758119350833,0.03,235.03,235.0,0.72]
[1758119351420,0.03,235.03,235.0,4.97524282]
[1758119352038,3.9698778,235.03,235.0,4.97524282]
[1758119352333,0.03,235.03,235.01,0.72]
[1758119352539,0.03,235.03,235.02,0.72]
[1758119353354,0.03,235.03,235.02,4.6598778]
[1758119353642,0.03,235.03,235.02,8.91483482]
[1758119353942,0.03,235.03,235.02,22.51042883]
[1758119355318,0.03,235.03,235.02,26.45030663]
[1758119355640,10.71326237,235.12,235.03,13.59559401]
[1758119355945,10.71326237,235.12,235.11,3.9398778]
[1758119356136,10.71326237,235.12,235.11,4.6598778]
[1758119356920,0.71,235.22,235.17,3.9398778]
[1758119357228,34.82,235.19,235.18,3.9398778]
[1758119357430,34.82,235.19,235.17,3.9398778]
[1758119357623,34.82,235.19,235.15,4.97253995]
[1758119357822,34.82,235.19,235.02,21.27478512]
[1758119357823,3.9398778,235.17,235.02,21.27478512]
[1758119358019,3.9398778,235.14,235.07,0.72]
[1758119358246,3.9398778,235.11,235.04,0.72]
[1758119358417,3.9398778,235.09,235.03,4.25477598]
[1758119358743,3.9398778,235.08,235.01,3.9398778]
[1758119358947,3.9398778,235.08,234.98,13.59559401]
[1758119358948,3.9398778,235.04,234.98,4.2555559]
[1758119359152,3.9398778,235.06,234.99,3.9398778]
[1758119359353,3.9398778,235.04,234.98,4.9755559]
[1758119359550,34.8,235.04,234.99,0.72]
[1758119359720,34.8,235.04,235.03,4.25477598]
[1758119360033,34.8,235.04,234.97,0.72]
[1758119360234,34.8,235.04,234.94,14.89742061]
[1758119360235,0.71,235.03,234.94,4.25640589]
[1758119360450,0.71,235.02,234.95,3.9398778]
[1758119360945,0.71,235.02,234.94,8.19628369]
[1758119361147,39.0546148,235.04,234.92,4.2566014]
[1758119361148,4.6498778,235.01,234.92,4.2566014]
[1758119361353,0.71,235.0,234.92,4.2566014]
[1758119361531,4.6498778,235.0,234.92,4.2566014]
[1758119361855,3.9398778,234.98,234.89,3.9398778]
[1758119362031,35.53,234.97,234.89,3.9398778]
[1758119362354,0.71,234.96,234.87,4.6598778]
[1758119362531,0.71,234.96,234.91,3.9398778]
[1758119362728,34.82,234.97,234.91,3.9398778]
[1758119362920,34.82,234.97,234.89,0.72]
[1758119363123,0.71,234.96,234.88,3.9398778]
[1758119363344,0.71,234.96,234.88,4.6598778]
[1758119363546,34.82,234.97,234.9,3.9398778]
[1758119363735,34.8,234.96,234.93,4.25658706]
[1758119364462,35.51,234.96,234.91,4.25679818]
[1758119364665,0.71,234.95,234.83,0.72]
[1758119364862,3.9398778,234.92,234.83,0.72]
[1758119365034,0.71,234.92,234.84,3.9398778]
[1758119365631,34.92,234.91,234.9,3.9398778]
[1758119365854,34.92,234.92,234.91,4.25694947]
[1758119366025,34.92,234.92,234.91,4.31694947]
[1758119366231,34.92,234.92,234.91,0.06]
[1758119368737,35.63,234.92,234.91,0.06]
[1758119370374,4.25694947,234.91,234.88,0.06]
[1758119370666,13.59559401,234.9,234.88,0.06]
[1758119370870,8.56953654,234.89,234.88,0.06]
[1758119371043,5.73153507,234.89,234.88,0.06]
[1758119371251,13.59559401,234.88,234.86,0.06]
[1758119371437,51.41359548,234.87,234.86,0.06]
[1758119371774,52.12359548,234.87,234.86,0.06]
[1758119371944,5.73153507,234.8,234.78,0.06]
[1758119372147,35.56,234.79,234.78,0.06]
[1758119372367,36.27,234.79,234.78,0.06]
[1758119373635,55.59712908,234.79,234.78,0.06]
[1758119373842,59.85625425,234.79,234.78,0.06]
[1758119374250,13.59559401,234.78,234.73,0.06]
[1758119374474,13.59559401,234.76,234.73,0.06]
[1758119374766,55.02712908,234.76,234.73,0.06]
[1758119374964,49.95559401,234.76,234.73,0.06]
[1758119375188,59.9485853,234.76,234.73,0.06]
[1758119375369,4.26145622,234.76,234.73,0.06]
[1758119375549,35.7,234.76,234.73,0.06]
[1758119375748,36.36,234.76,234.73,0.06]
[1758119376074,49.95559401,234.76,234.73,0.06]
[1758119376368,19.98712908,234.76,234.73,0.06]
[1758119376568,36.38,234.76,234.73,0.06]
[1758119376774,55.70712908,234.76,234.73,0.06]
[1758119376956,52.80826553,234.76,234.73,0.06]
[1758119377155,17.08826553,234.76,234.73,0.06]
[1758119377466,49.95559401,234.76,234.73,0.06]
[1758119377948,35.7,234.76,234.73,0.06]
[1758119378152,5.73153507,234.77,234.73,0.06]
[1758119378349,4.26074039,234.78,234.73,4.32018994]
[1758119378575,4.26074039,234.78,234.75,5.25979091]
[1758119378845,19.32712908,234.85,234.76,6.42153507]
[1758119379068,35.68,234.84,234.76,0.69]
[1758119379371,35.68,234.83,234.81,5.73153507]
[1758119379571,0.66,234.9,234.82,0.69]
[1758119379775,6.39153507,234.9,234.82,0.69]
[1758119379955,35.66,234.89,234.83,14.90439892]
[1758119380159,35.66,234.88,234.85,5.73153507]
[1758119380465,6.39153507,234.95,234.87,5.73153507]
[1758119380649,5.73153507,234.97,234.86,0.69]
[1758119380968,35.66,234.96,234.88,5.73153507]
[1758119381182,0.66,234.99,234.91,5.73153507]
[1758119381354,25.05866415,235.01,234.93,5.73153507]
[1758119381552,35.7,235.0,234.92,0.69]
[1758119381862,5.73153507,234.99,234.89,0.69]
[1758119382181,5.73153507,234.96,234.85,0.69]
[1758119382350,35.7,234.95,234.86,5.73153507]
[1758119382551,35.7,234.95,234.87,0.69]
[1758119383452,35.7,234.95,234.87,6.42153507]
[1758119383650,35.7,234.95,234.88,4.25749318]
[1758119384280,5.73153507,234.98,234.88,9.98902825]
[1758119384473,0.66,234.99,234.9,5.73153507]
[1758119384678,35.74,234.97,234.91,0.69]
[1758119384863,35.74,234.97,234.89,0.69]
[1758119385060,42.13153507,234.97,234.88,4.25749318]
[1758119385259,5.73153507,234.95,234.86,10.7393138]
[1758119385472,0.66,234.96,234.86,10.7393138]
[1758119385664,5.73153507,234.94,234.86,5.00777873]
[1758119386485,0.66,234.93,234.86,0.06]
[1758119386679,35.84,234.92,234.86,0.06]
[1758119387382,35.84,234.92,234.86,4.31777892]
[1758119387581,0.66,234.98,234.88,5.73153507]
[1758119387779,35.82,234.97,234.89,4.25731193]
[1758119388077,35.82,234.97,234.89,14.90059176]
[1758119388458,5.76153507,235.0,234.89,14.90059176]
[1758119388662,36.46,234.99,234.9,0.69]
[1758119388978,5.73153507,234.98,234.9,0.69]
[1758119389181,36.46,234.99,234.9,0.69]
[1758119389384,36.46,234.99,234.91,5.73153507]
[1758119389596,0.03,235.0,234.91,5.73153507]
[1758119389794,0.03,235.0,234.93,4.25658706]
[1758119389795,21.97248929,234.98,234.93,4.25658706]
[1758119390086,0.66,234.97,234.91,5.73153507]
[1758119390271,0.66,234.97,234.89,10.67880473]
[1758119390672,40.05551039,234.99,234.89,10.67880473]
[1758119390969,35.76,234.98,234.91,5.73153507]
[1758119391675,42.15153507,234.98,234.9,6.42153507]
[1758119391886,5.73153507,234.96,234.86,0.75]
[1758119392067,6.39153507,234.97,234.87,5.73153507]
[1758119392266,6.39153507,234.97,234.87,9.98920952]
[1758119392580,6.39153507,234.97,234.89,5.73153507]
[1758119392961,0.66,234.97,234.89,6.42153507]
[1758119393164,40.01580218,234.98,234.91,5.73153507]
[1758119393376,9.98708206,234.99,234.91,5.73153507]
[1758119393574,35.76,234.98,234.91,6.42153507]
[1758119393973,35.76,234.98,234.92,4.25676826]
[1758119394485,6.42153507,235.0,234.92,4.25676826]
[1758119394686,35.74,234.99,234.93,6.42153507]
[1758119395580,5.76153507,235.0,234.93,6.42153507]
[1758119395788,0.03,235.0,234.97,5.73153507]
[1758119395971,35.7,234.99,234.98,4.25568133]
[1758119396281,35.7,234.99,234.98,4.91568133]
[1758119396878,35.7,234.99,234.97,5.73153507]
[1758119397083,35.7,234.99,234.94,0.66]
[1758119397277,35.7,234.99,234.95,6.39153507]
[1758119397580,35.7,234.99,234.95,5.73153507]
[1758119397781,35.7,234.99,234.94,5.73153507]
[1758119397969,35.7,234.99,234.96,5.73153507]
[1758119398164,35.7,234.99,234.97,0.66]
[1758119398368,0.03,235.0,234.96,5.73153507]
[1758119398569,35.66,234.98,234.97,6.39153507]
[1758119399167,35.66,234.98,234.96,5.73153507]
[1758119399484,35.66,234.98,234.97,0.66]
[1758119399674,35.66,234.98,234.96,5.73153507]
[1758119399874,35.66,234.98,234.97,0.66]
[1758119400173,0.03,235.0,234.98,4.25568133]
[1758119400373,0.03,235.03,234.98,4.25568133]
[1758119400374,0.03,235.03,234.99,5.73153507]
[1758119400585,0.03,235.05,235.0,13.59559401]
[1758119400899,0.03,235.05,235.04,5.73153507]
[1758119401069,10.60337012,235.08,235.04,19.32712908]
[1758119401261,10.60337012,235.08,235.05,0.66]
[1758119401461,10.60337012,235.08,235.07,5.73153507]
[1758119401698,10.60337012,235.08,235.06,0.66]
[1758119401862,0.66,235.07,234.99,0.66]
[1758119402066,10.60337012,235.08,235.0,14.89361701]
[1758119402264,10.60337012,235.08,235.01,0.66]
[1758119402488,16.99490519,235.08,235.0,9.98685421]
[1758119402664,11.26337012,235.08,235.0,9.98685421]
[1758119402871,16.99490519,235.08,235.0,9.98685421]
[1758119403175,35.56,235.07,235.0,9.98685421]
[1758119403494,5.73153507,235.01,234.91,0.66]
[1758119403666,13.59559401,235.04,234.95,5.73153507]
[1758119403995,14.85725546,235.08,234.99,5.73153507]
[1758119403996,35.6,235.03,234.99,5.73153507]
[1758119404182,5.73153507,235.01,234.91,0.66]
[1758119404490,5.73153507,234.99,234.91,5.73153507]
[1758119405390,0.03,235.03,234.98,5.73153507]
[1758119405695,0.03,235.03,234.99,5.73153507]
[1758119405696,35.64,235.02,234.99,5.73153507]
[1758119405874,35.64,235.02,234.96,0.66]
[1758119406079,0.69,235.01,234.9,10.64257968]
[1758119406416,5.73153507,234.98,234.9,5.73153507]
[1758119406697,6.42153507,234.98,234.88,0.66]
[1758119406995,5.73153507,234.96,234.88,6.39153507]
[1758119407193,35.64,234.95,234.88,6.39153507]
[1758119407382,35.64,234.95,234.93,5.73153507]
[1758119407577,35.64,234.95,234.89,0.66]
[1758119407896,35.64,234.95,234.87,14.90184193]
[1758119407897,42.06153507,234.95,234.87,4.25767445]
[1758119408201,5.73153507,234.94,234.87,9.98920952]
[1758119408693,5.73153507,234.94,234.87,4.25767445]
[1758119408875,5.73153507,234.92,234.86,0.06]
[1758119409077,5.73153507,234.91,234.86,0.06]
[1758119409379,5.73153507,234.89,234.86,0.06]
[1758119409581,5.73153507,234.87,234.86,0.06]
[1758119409884,0.69,234.87,234.86,0.06]
[1758119410094,41.31153507,234.88,234.86,0.06]
[1758119410266,41.31153507,234.88,234.86,4.31782245]
[1758119410267,35.66,234.88,234.86,4.31782245]
[1758119410795,0.69,234.95,234.87,6.39153507]
[1758119411000,4.25568133,234.98,234.91,5.73153507]
[1758119411001,35.66,234.94,234.91,5.73153507]
[1758119411596,35.66,234.94,234.87,0.66]
[1758119411898,35.66,234.94,234.86,10.04935752]
[1758119411899,5.73153507,234.92,234.86,10.04935752]
[1758119412123,5.73153507,234.9,234.86,0.06]